fUSD/lending_fUSD_20240419
["ID","MTS","AMOUNT","RATE_DAILY","PERIOD"]
[322982106,1713558661613,-1628.77,0.00016712,2]
[322982107,1713558661623,-500.0,0.00016712,2]
[322982108,1713558661633,-500.0,0.00016712,2]
[322982109,1713558661644,-500.0,0.00016712,2]
[322982110,1713558661654,-500.0,0.00016712,2]
[322982111,1713558661664,-1652.32,0.00016712,2]
[322982112,1713558661675,-2187.63,0.00016712,2]
[322982113,1713558661686,-500.0,0.00016712,2]
[322982114,1713558661696,-5672.74,0.00016712,2]
[322982115,1713558661712,-2827.33,0.00016712,2]
[322982116,1713558661723,-3726.0,0.00016712,2]
[322982117,1713558661735,-3541.16,0.00016712,2]
[322982118,1713558661747,-1207.05,0.00016712,2]
[322982119,1713558661758,-5565.11,0.00016712,2]
[322982120,1713558661769,-500.0,0.00016712,2]
[322982121,1713558661780,-684.03,0.00016712,2]
[322982122,1713558661791,-1890.68,0.00016712,2]
[322982123,1713558661801,-500.0,0.00016712,2]
[322982124,1713558661812,-679.0,0.00016712,2]
[322982125,1713558661822,-500.0,0.00016712,2]
[322982126,1713558661832,-565.17,0.00016712,2]
[322982127,1713558661843,-864.95,0.00016712,2]
[322982128,1713558661853,-564.19,0.00016712,2]
[322982129,1713558661863,-674.43,0.00016712,2]
[322982130,1713558661874,-2078.78,0.00016712,2]
[322982131,1713558661884,-500.0,0.00016712,2]
[322982132,1713558661894,-500.0,0.00016712,2]
[322982133,1713558661905,-577.33,0.00016712,2]
[322982134,1713558661916,-854.23,0.00016712,2]
[322982135,1713558661926,-500.0,0.00016712,2]
[322982136,1713558661937,-1788.65,0.00016712,2]
[322982137,1713558661948,-1612.41,0.00016712,2]
[322982138,1713558661958,-500.0,0.00016712,2]
[322982139,1713558661969,-4141.68,0.00016712,2]
[322982140,1713558661979,-3071.71,0.00016712,2]
[322982141,1713558661990,-1033.3,0.00016712,2]
[322982142,1713558662000,-1097.44,0.00016712,2]
[322982143,1713558662010,-3841.29,0.00016712,2]
[322982144,1713558662021,-500.0,0.00016712,2]
[322982145,1713558662031,-500.0,0.00016712,2]
[322982146,1713558662042,-2515.57,0.00016712,2]
[322982147,1713558662052,-1189.79,0.00016712,2]
[322982148,1713558662062,-1493.95,0.00016712,2]
[322982149,1713558662073,-500.0,0.00016712,2]
[322982150,1713558662083,-500.0,0.00016712,2]
[322982151,1713558662094,-500.0,0.00016712,2]
[322982152,1713558662104,-500.0,0.00016712,2]
[322982153,1713558662114,-2762.36,0.00016712,2]
[322982154,1713558662127,-790.79,0.00016712,2]
[322982155,1713558662138,-1027.5,0.00016712,2]
[322982156,1713558662148,-151.0,0.00016712,2]
[322982157,1713558662158,-151.0,0.00016712,2]
[322982158,1713558662169,-730.11,0.00016712,2]
[322982159,1713558662180,-1108.61,0.00016712,2]
[322982160,1713558662190,-500.0,0.00016712,2]
[322982161,1713558662200,-500.0,0.00016712,2]
[322982162,1713558662211,-500.0,0.00016712,2]
[322982163,1713558662222,-1268.03,0.00016712,2]
[322982164,1713558662233,-1921.38,0.00016712,2]
[322982165,1713558662245,-4845.9,0.00016712,2]
[322982166,1713558662255,-1160.7,0.00016712,2]
[322982167,1713558662266,-537.45,0.00016712,2]
[322982168,1713558662277,-5676.64,0.00016712,2]
[322982169,1713558662288,-2742.53,0.00016712,2]
[322982170,1713558662299,-928.09,0.00016712,2]
[322982171,1713558662310,-631.73,0.00016712,2]
[322982172,1713558662321,-18668.52,0.00016712,2]
[322982173,1713558662332,-500.0,0.00016712,2]
[322982174,1713558662342,-858.46,0.00016712,2]
[322982175,1713558662353,-801.56,0.00016712,2]
[322982176,1713558662364,-500.0,0.00016712,2]
[322982177,1713558662377,-9136.22,0.00016712,2]
[322982178,1713558662388,-613.7,0.00016712,2]
[322982179,1713558662399,-500.0,0.00016712,2]
[322982180,1713558662410,-952.77,0.00016712,2]
[322982181,1713558662421,-3746.94,0.00016712,2]
[322982182,1713558662432,-500.0,0.00016712,2]
[322982183,1713558662442,-500.0,0.00016712,2]
[322982184,1713558662453,-331.04592674,0.00016712,2]
[322982185,1713558662464,-987.44,0.00016712,2]
[322982186,1713558662474,-500.0,0.00016712,2]
[322982187,1713558662485,-845.06,0.00016712,2]
[322982188,1713558662495,-921.48,0.00016712,2]
[322982189,1713558662506,-1782.17,0.00016712,2]
[322982190,1713558662517,-763.79,0.00016712,2]
[322982191,1713558662527,-643.49,0.00016712,2]
[322982192,1713558662538,-500.0,0.00016712,2]
[322982193,1713558662548,-500.0,0.00016712,2]
[322982194,1713558662559,-2319.27309504,0.00016712,2]
[322982195,1713558662575,-7841.96690496,0.00016712,2]
[322982196,1713558662586,-500.0,0.00016712,2]
[322982197,1713558662596,-830.31,0.00016712,2]
[322982198,1713558662608,-500.0,0.00016712,2]
[322982199,1713558662619,-500.0,0.00016712,2]
[322982200,1713558662635,-943.58,0.00016712,2]
[322982201,1713558662646,-671.03,0.00016712,2]
[322982202,1713558662657,-1401.26,0.00016712,2]
[322982203,1713558662667,-1035.26,0.00016712,2]
[322982204,1713558662678,-500.0,0.00016712,2]
[322982205,1713558662688,-500.0,0.00016712,2]
[322982206,1713558662699,-3049.03,0.00016712,2]
[322982207,1713558662712,-679.31,0.00016712,2]
[322982208,1713558662722,-500.0,0.00016712,2]
[322982209,1713558662732,-1038.79,0.00016712,2]
[322982210,1713558662742,-1875.93,0.00016712,2]
[322982211,1713558662754,-1032.72,0.00016712,2]
[322982212,1713558662764,-500.0,0.00016712,2]
[322982213,1713558662774,-500.0,0.00016712,2]
[322982214,1713558662786,-1626.48,0.00016712,2]
[322982215,1713558662796,-500.0,0.00016712,2]
[322982216,1713558662806,-2401.92,0.00016712,2]
[322982217,1713558662816,-500.0,0.00016712,2]
[322982218,1713558662826,-500.0,0.00016712,2]
[322982219,1713558662837,-500.0,0.00016712,2]
[322982220,1713558662848,-500.0,0.00016712,2]
[322982221,1713558662858,-3905.73,0.00016712,2]
[322982222,1713558662868,-366.91,0.00016712,2]
[322982223,1713558662882,-845.92,0.00016712,2]
[322982224,1713558663667,-3755.23,0.00016712,2]
[322982225,1713558663707,-3307.54,0.00016712,2]
[322982226,1713558663729,-500.0,0.00016712,2]
[322982227,1713558663750,-500.0,0.00016712,2]
[322982228,1713558663766,-728.42,0.00016712,2]
[322982229,1713558663775,-500.0,0.00016712,2]
[322982230,1713558663785,-500.0,0.00016712,2]
[322982231,1713558663795,-721.74,0.00016712,2]
[322982232,1713558663804,-629.53,0.00016712,2]
[322982233,1713558663813,-373.184184,0.00016712,2]
[322982234,1713558663822,-373.184184,0.00016712,2]
[322982235,1713558663831,-555.14,0.00016712,2]
[322982236,1713558663841,-151.0,0.00016712,2]
[322982237,1713558663850,-153.805087,0.00016712,2]
[322982238,1713558663859,-2624.22694846,0.00016712,2]
[322982239,1713558663872,-1921.08305154,0.00016712,2]
[322982240,1713558663882,-178.52,0.00016712,2]
[322982241,1713558663891,-480.0,0.0001672,2]
[322982242,1713558663900,-166.77659482,0.00016804,2]
[322982243,1713558663910,-520.0,0.00016804,2]
[322982244,1713558663919,-500.0,0.00016819,2]
[322982245,1713558663929,-500.0,0.00016828,2]
[322982246,1713558663938,-500.0,0.00016836,2]
[322982247,1713558663947,-169.0,0.0001684,2]
[322982248,1713558663959,-500.0,0.00016845,2]
[322982249,1713558663968,-500.0,0.00016854,2]
[322982250,1713558663978,-500.0,0.00016863,2]
[322982251,1713558663988,-500.0,0.00016872,2]
[322982252,1713558663997,-500.0,0.0001688,2]
[322982253,1713558664007,-500.0,0.00016889,2]
[322982254,1713558664017,-500.0,0.00016898,2]
[322982255,1713558664026,-32177.62340571,0.00016899,2]
[322982297,1713559831968,-3053.99770799,0.00012909,2]
[322982298,1713559831996,-1476.94465062,0.00012909,2]
[322982299,1713559832036,-1933.2137905,0.00012909,2]
[322982300,1713559832060,-709.02559534,0.00012909,2]
[322982301,1713559832096,-165.23757972,0.00012909,2]
[322982302,1713559832107,-128.20054901,0.00012909,2]
[322982303,1713559832160,-573.94298858,0.00012909,2]
[322982304,1713559832171,-523.73285481,0.0001291,2]
[322982305,1713559832183,-967.19043138,0.0001291,2]
[322982306,1713559832193,-189.10394884,0.00012911,2]
[322982307,1713559832204,-829.9,0.00013026,2]
[322982308,1713559832215,-539.0,0.00014658,2]
[322982309,1713559832226,-994.0,0.00014658,2]
[322982310,1713559832237,-250.0,0.00014662,2]
[322982311,1713559832251,-989.63733959,0.00014717,2]
[322982312,1713559832339,-256.90979463,0.00014717,2]
[322982322,1713559837949,-253.45286578,0.00014717,2]
[322982323,1713559837958,-190.38492096,0.00014717,2]
[322982324,1713559838005,-479.91507904,0.00014717,2]
[322982325,1713559838015,-97.66910033,0.00014794,2]
[322982326,1713559838027,-6146.64666196,0.00014794,2]
[322982327,1713559838039,-1204.738,0.00014794,2]
[322982328,1713559838068,-5909.01623771,0.00014794,2]
[322982329,1713559838082,-1000.0,0.00014794,2]
[322982330,1713559838092,-23900.0,0.00014974,2]
[322982331,1713559838102,-1250.0,0.00015,2]
[322982332,1713559838111,-177.74,0.00015,2]
[322982333,1713559838124,-162.5,0.00015013,2]
[322982334,1713559838134,-829.9,0.0001529,2]
[322982335,1713559838144,-178.34,0.0001549,2]
[322982336,1713559838153,-517.28,0.00015616,2]
[322982337,1713559838163,-150.0,0.00015616,2]
[322982338,1713559838172,-300.0,0.00015616,2]
[322982339,1713559838182,-322.51,0.00015616,2]
[322982340,1713559838192,-150.0,0.00015616,2]
[322982341,1713559838201,-695.47,0.00015616,2]
[322982342,1713559838212,-994.0,0.00015617,2]
[322982343,1713559838222,-19743.8361,0.00015699,2]
[322982344,1713559838232,-1202.0135,0.00015699,2]
[322982345,1713559838241,-580.698,0.00015713,2]
[322982346,1713559838251,-1426.38,0.00015713,2]
[322982347,1713559838261,-2292.0,0.00015713,2]
[322982348,1713559838270,-996.311,0.00015713,2]
[322982349,1713559838279,-541.0,0.00015713,2]
[322982350,1713559838289,-1228.0,0.00015713,2]
[322982351,1713559838298,-1254.0,0.00015713,2]
[322982352,1713559838308,-609.0,0.00015713,2]
[322982353,1713559838318,-1949.0,0.00015713,2]
[322982354,1713559838332,-436.0,0.00015713,2]
[322982356,1713559838342,-257.0,0.00015713,2]
[322982359,1713559838353,-807.0,0.00015713,2]
[322982360,1713559838363,-399.0,0.00015713,2]
[322982362,1713559838372,-2068.659,0.00015713,2]
[322982364,1713559838382,-1260.332,0.00015713,2]
[322982367,1713559838392,-150.0,0.00015713,2]
[322982369,1713559838402,-1543.734,0.00015713,2]
[322982372,1713559838411,-1410.486,0.00015713,2]
[322982374,1713559838421,-214.0,0.00015713,2]
[322982376,1713559838431,-1140.0,0.00015713,2]
[322982378,1713559838440,-443.0,0.00015713,2]
[322982380,1713559838450,-355.0,0.00015713,2]
[322982382,1713559838459,-284.938,0.00015713,2]
[322982384,1713559838468,-233.89,0.00015713,2]
[322982386,1713559838478,-3385.33725613,0.00015731,2]
[322982388,1713559838487,-482.50838417,0.00015798,2]
[322982390,1713559838497,-2476.69436832,0.00015798,2]
[322982392,1713559838506,-1079.919,0.00015799,2]
[322982394,1713559838515,-1000.0,0.00015799,2]
[322982395,1713559838525,-245000.0,0.00015799,2]
[322982396,1713559838534,-167.0,0.00015831,2]
[322982397,1713559838545,-167.0,0.00015831,2]
[322982398,1713559838554,-5800.0,0.00015883,2]
[322982399,1713559838564,-5800.0,0.00015891,2]
[322982400,1713559838577,-500.0,0.000159,2]
[322982401,1713559838587,-170.63737638,0.000159,2]
[322982402,1713559838596,-100000.0,0.000159,2]
[322982403,1713559838606,-7736.62718198,0.000159,2]
[322982404,1713559838616,-165.46593543,0.000159,2]
[322982405,1713559838625,-8068.02641535,0.000159,2]
[322982406,1713559838634,-646.0,0.000159,2]
[322982407,1713559838643,-156.62064813,0.000159,2]
[322982408,1713559838652,-336.76686752,0.000159,2]
[322982409,1713559838662,-5800.0,0.000159,2]
[322982410,1713559838671,-210.29933202,0.000159,2]
[322982411,1713559838680,-150.72,0.0001599,2]
[322982412,1713559838689,-150.72,0.0001599,2]
[322982413,1713559838698,-150.72,0.0001599,2]
[322982414,1713559838707,-150.72,0.0001599,2]
[322982415,1713559838716,-150.72,0.0001599,2]
[322982416,1713559838726,-150.72,0.0001599,2]
[322982417,1713559838736,-150.72,0.0001599,2]
[322982418,1713559838746,-150.72,0.0001599,2]
[322982419,1713559838755,-150.72,0.0001599,2]
[322982420,1713559838765,-150.72,0.0001599,2]
[322982421,1713559838774,-70444.33247912,0.0001599,2]
[322982422,1713559838783,-1240.66300341,0.00015999,2]
[322982423,1713559838792,-667.83878368,0.00015999,3]
[322982424,1713559838801,-12602.86369972,0.00016,2]
[322982425,1713559838810,-225138.21211053,0.00016,2]
[322982426,1713559838827,-588.2434008,0.00016,2]
[322982427,1713559838896,-1226796.55807338,0.00016,2]
[322982428,1713559838915,-4219.40957056,0.00016,2]
[322982429,1713559838926,-206462.44446823,0.00016,2]
[322982430,1713559838935,-235.05201233,0.00016,2]
[322982431,1713559838944,-37165.29206915,0.00016,2]
[322982432,1713559838955,-522.17183039,0.00016,2]
[322982433,1713559838968,-3572.60952,0.00016,2]
[322982434,1713559838997,-1113.46114593,0.00016,2]
[322982435,1713559839009,-3520.66396125,0.00016,2]
[322982436,1713559839021,-657.76259654,0.00016,2]
[322982438,1713559840058,-262.08510963,0.00015797,2]
[322982439,1713559840069,-31.61489037,0.00016,2]
[322982440,1713559840092,-6380.5,0.00016,2]
[322982441,1713559840103,-338.79383807,0.00016,2]
[322982442,1713559840116,-15383.4283066,0.00016,2]
[322982443,1713559840127,-9102.7803848,0.00016,2]
[322982444,1713559840153,-1227.79854319,0.00016,2]
[322982469,1713559843013,-609.04653043,0.00015699,2]
[322982470,1713559843128,-555.330274,0.00015699,2]
[322982471,1713559843187,-3778.09572341,0.00015699,2]
[322982472,1713559843247,-9533.94310162,0.00015699,2]
[322982473,1713559843307,-85523.58437054,0.00015699,2]
[322982474,1713559843316,-494957.09291371,0.00016,2]
[322982475,1713559843327,-313979.40645483,0.00016,2]
[322982507,1713559846108,-355.86143225,0.00015999,2]
[322982509,1713559846121,-4089.81023753,0.00015999,2]
[322982511,1713559846132,-967.19043138,0.00015999,2]
[322982513,1713559846141,-31836.02754109,0.00016,2]
[322982515,1713559846152,-61249.755,0.00016,2]
[322982518,1713559846164,-222943.77965804,0.00016,2]
[322982522,1713559846284,-86198.10278025,0.00016,2]
[322982523,1713559846295,-386.34527195,0.00016,2]
[322982524,1713559846337,-1687.36407221,0.00016,2]
[322982525,1713559846348,-895.37,0.00016,2]
[322982526,1713559846360,-1450.40900007,0.00016,2]
[322982527,1713559846379,-1644.66488674,0.00016,2]
[322982544,1713560551897,865.69,0.0001021,2]
[322982545,1713560602292,-994.68243522,0.00026521,30]
[322982546,1713560602316,-994.68243522,0.0002663,30]
[322982547,1713560602339,-994.68243522,0.0002674,30]
[322982548,1713560602362,-994.68243522,0.00026849,30]
[322982549,1713560602386,-994.68243522,0.00026959,30]
[322982550,1713560602412,-994.68243522,0.00027068,30]
[322982551,1713560602435,-994.68243522,0.00027178,30]
[322982552,1713560602457,-994.68243522,0.00027288,30]
[322982553,1713560602478,-213.14106583,0.0002739,30]
[322982554,1713560602502,-2000.0,0.00027397,30]
[322982555,1713560602525,-994.68243522,0.00027397,30]
[322982800,1713561032136,-161.43545051,0.00011355,2]
[322982801,1713561032145,-325.54755976,0.00011355,2]
[322982802,1713561032155,-236.6335643,0.00011356,2]
[322982804,1713561032165,-200.0,0.00011357,2]
[322982806,1713561032175,-2091.45832024,0.00011387,2]
[322982807,1713561032199,-308.60746084,0.00011387,2]
[322982808,1713561032210,-258.128903,0.00011387,2]
[322982809,1713561032222,-266.27999998,0.00011387,2]
[322982810,1713561032233,-752.4458828,0.00011387,2]
[322982811,1713561032245,-3661.49875731,0.00011387,2]
[322982812,1713561032255,-3757.73056516,0.00011388,2]
[322982813,1713561032265,-1060.25258185,0.00011389,2]
[322982814,1713561032274,-4291.21994997,0.0001139,2]
[322982815,1713561032286,-299.77607912,0.0001139,2]
[322982816,1713561032297,-2214.06189973,0.0001139,2]
[322982817,1713561032309,-956.33828,0.0001139,2]
[322982818,1713561032353,-1848.61575999,0.0001139,2]
[322982819,1713561032369,-404.0000001,0.0001139,2]
[322982820,1713561032385,-326.34,0.0001139,2]
[322982821,1713561032398,-420.0,0.0001139,2]
[322982822,1713561032412,-2278.10239726,0.0001139,2]
[322982823,1713561032429,-1975.18495575,0.00011394,2]
[322982824,1713561032444,-261.36402809,0.00011394,2]
[322982825,1713561032458,-5848.38428761,0.00011394,2]
[322982827,1713561032491,-320.8465035,0.00011394,2]
[322982829,1713561032506,-7931.10022505,0.00011394,2]
[322982831,1713561032518,-161.55,0.00011587,2]
[322982833,1713561032528,-161.55,0.00011602,2]
[322982835,1713561032539,-161.55,0.00011616,2]
[322982837,1713561032551,-161.55,0.00011631,2]
[322982838,1713561032563,-161.55,0.00011645,2]
[322982839,1713561032575,-157.92490406,0.00011748,2]
[322982840,1713561032588,-2584.22,0.0001185,2]
[322982841,1713561032600,-250.0,0.00011919,2]
[322982842,1713561032612,-156.45,0.00011956,2]
[322982843,1713561032625,-365.81678309,0.00012,2]
[322982844,1713561032637,-156.45,0.0001208,2]
[322982846,1713561032649,-482.50838417,0.0001211,2]
[322982848,1713561032659,-187.09,0.00012128,2]
[322982850,1713561032670,-156.45,0.00012205,2]
[322982853,1713561032684,-833.33691221,0.00012228,2]
[322982855,1713561032696,-800.0,0.00012235,2]
[322982857,1713561032708,-156.45,0.0001233,2]
[322982860,1713561032724,-1597.1904,0.00012377,2]
[322982862,1713561032736,-150.99,0.00012391,2]
[322982864,1713561032748,-156.45,0.00012454,2]
[322982866,1713561032760,-162.84,0.00012467,2]
[322982867,1713561032772,-156.45,0.00012579,2]
[322982868,1713561032784,-263.49,0.00012581,2]
[322982869,1713561032796,-200.0,0.00012777,2]
[322982870,1713561032808,-10055.37431578,0.000128,2]
[322982871,1713561032820,-8757.24,0.000128,2]
[322982872,1713561032835,-165.46593543,0.000128,2]
[322982874,1713561032847,-204.99865098,0.00012864,2]
[322982876,1713561032861,-155.57130007,0.00012872,2]
[322982878,1713561032872,-345.97965257,0.00012872,2]
[322982880,1713561032886,-155.54436796,0.00012873,2]
[322982883,1713561032898,-266348.32884811,0.00012874,2]
[322982884,1713561032911,-74805.49996,0.00012874,2]
[322982885,1713561032925,-30679.999987,0.00012874,2]
[322982886,1713561032938,-920.0,0.00012874,2]
[322982887,1713561032952,-1450.28399832,0.00012874,2]
[322982888,1713561032970,-316.79119983,0.00012874,2]
[322982889,1713561032985,-460.48,0.00012874,2]
[322982890,1713561033000,-251.82359112,0.00012874,2]
[322982891,1713561033018,-384.801,0.00012874,2]
[322982892,1713561033043,-3746.38281553,0.00012874,2]
[322982893,1713561033056,-6481.68123966,0.00012874,2]
[322982894,1713561033084,-1997.4276,0.00012874,2]
[322982895,1713561033099,-1042.16772,0.00012874,2]
[322982896,1713561033113,-1309.51,0.00012874,2]
[322982897,1713561033130,-1486.7837916,0.00012874,2]
[322982898,1713561033146,-647.77,0.00012874,2]
[322982899,1713561033161,-299.68,0.00012874,2]
[322982900,1713561033176,-768.59427376,0.00012874,2]
[322982901,1713561033191,-2121.37763752,0.00012874,2]
[322982902,1713561033206,-1194.85289494,0.00012874,2]
[322982903,1713561033221,-3971.0701764,0.00012874,2]
[322982904,1713561033236,-594.94879803,0.00012874,2]
[322982905,1713561033252,-286.66009093,0.00012874,2]
[322982906,1713561033267,-5107.4353723,0.00012874,2]
[322982907,1713561033281,-303.37155231,0.00012874,2]
[322982908,1713561033332,-574.25050338,0.00012874,2]
[322982909,1713561033347,-1125.00000012,0.00012874,2]
[322982910,1713561033362,-3004.99999999,0.00012874,2]
[322982911,1713561033376,-6450.0,0.00012874,2]
[322982912,1713561033389,-13125.53380091,0.00012874,2]
[322982913,1713561033440,-919.32000046,0.00012874,2]
[322982914,1713561033455,-630.85,0.00012874,2]
[322982977,1713561038789,-155.0,0.00011354,2]
[322982980,1713561038799,-29695.72174718,0.00012874,2]
[322982982,1713561038810,-7973.40379985,0.00012874,2]
[322982984,1713561038822,-366.83172432,0.00012874,2]
[322982987,1713561038834,-6423.2968965,0.00012874,2]
[322982989,1713561038846,-1681.81594384,0.00012874,2]
[322982992,1713561038864,-1283.2,0.00012874,2]
[322982997,1713561038900,-2538.78599999,0.00012874,2]
[322982999,1713561038911,-3250.34879503,0.00012874,2]
[322983001,1713561038923,-6339.3,0.00012874,2]
[322983006,1713561038955,-53010.92520781,0.00012874,2]
[322983008,1713561038964,-1079.919,0.00012874,2]
[322983010,1713561038975,-58597.05021631,0.00012875,2]
[322983012,1713561038984,-499.99,0.00012875,2]
[322983014,1713561038993,-5554.19844292,0.00012876,2]
[322983016,1713561039002,-273.9,0.00012876,2]
[322983018,1713561039012,-203.79893697,0.00012877,2]
[322983020,1713561039021,-167.20253002,0.00012877,2]
[322983022,1713561039030,-683.85801467,0.00012878,2]
[322983024,1713561039039,-729228.71451845,0.0001288,2]
[322983026,1713561039049,-10055.37431574,0.00013082,2]
[322983028,1713561039059,-10055.37431574,0.00013364,2]
[322983030,1713561039069,-10055.37431574,0.00013645,2]
[322983032,1713561039078,-1500.0,0.00013699,2]
[322983034,1713561039087,-800.0,0.00013764,2]
[322983036,1713561039096,-165.4659354,0.00013833,2]
[322983038,1713561039105,-10055.37431574,0.00013927,2]
[322983040,1713561039115,-150.82,0.00014,2]
[322983041,1713561039124,-150.82,0.00014,2]
[322983042,1713561039133,-200.0,0.00014197,2]
[322983043,1713561039142,-10055.37431574,0.00014209,2]
[322983044,1713561039151,-150.0,0.00014396,2]
[322983045,1713561039160,-10055.37431574,0.00014491,2]
[322983046,1713561039169,-170.63737638,0.00014554,2]
[322983047,1713561039178,-150.0,0.00014586,2]
[322983048,1713561039188,-2584.22,0.0001459,2]
[322983049,1713561039197,-150.0,0.00014653,2]
[322983051,1713561039206,-756.25591946,0.00014657,2]
[322983053,1713561039215,-1083.0,0.00014658,2]
[322983055,1713561039226,-150.0,0.0001472,2]
[322983057,1713561039235,-10055.37431574,0.00014773,2]
[322983059,1713561039244,-150.0,0.00014775,2]
[322983061,1713561039254,-150.0,0.00014791,2]
[322983063,1713561039264,-150.0,0.00014808,2]
[322983065,1713561039274,-150.0,0.00014846,2]
[322983067,1713561039283,-165.4659354,0.00014867,2]
[322983069,1713561039291,-150.0,0.00014955,2]
[322983071,1713561039300,-150.0,0.00014968,2]
[322983073,1713561039310,-1000.0,0.00014997,2]
[322983075,1713561039319,-191.14508613,0.00015,2]
[322983077,1713561039328,-2289.11504701,0.00015,2]
[322983079,1713561039337,-150.0,0.00015026,2]
[322983081,1713561039346,-10055.37431574,0.00015055,2]
[322983083,1713561039356,-150.0,0.00015068,2]
[322983085,1713561039365,-151.22,0.00015068,2]
[322983087,1713561039376,-152.58,0.00015125,2]
[322983089,1713561039386,-187.09,0.0001516,2]
[322983091,1713561039396,-416.72,0.00015178,2]
[322983093,1713561039406,-518.98,0.00015178,2]
[322983095,1713561039416,-310.22,0.00015178,2]
[322983097,1713561039430,-150.0,0.00015178,2]
[322983099,1713561039444,-322.51,0.00015178,2]
[322983101,1713561039466,-150.0,0.00015178,2]
[322983103,1713561039476,-695.47,0.00015178,2]
[322983105,1713561039487,-300.0,0.00015178,2]
[322983107,1713561039498,-517.28,0.00015178,2]
[322983109,1713561039508,-150.0,0.00015222,2]
[322983111,1713561039517,-150.0,0.00015276,2]
[322983113,1713561039528,-800.0,0.00015294,2]
[322983115,1713561039536,-10055.37431574,0.00015336,2]
[322983117,1713561039546,-5885.0,0.00015364,2]
[322983119,1713561039555,-1737.0,0.00015364,2]
[322983121,1713561039564,-5721.0,0.00015364,2]
[322983123,1713561039573,-37669.0,0.00015364,2]
[322983125,1713561039584,-1054.0,0.00015364,2]
[322983127,1713561039593,-150.0,0.00015378,2]
[322983129,1713561039602,-150.0,0.00015378,2]
[322983131,1713561039611,-150.0,0.00015378,2]
[322983133,1713561039620,-150.0,0.00015378,2]
[322983135,1713561039630,-150.0,0.00015389,2]
[322983137,1713561039639,-1140.9,0.00015394,2]
[322983140,1713561039648,-557.17,0.00015394,2]
[322983142,1713561039658,-150.0,0.0001547,2]
[322983144,1713561039668,-150.0,0.00015494,2]
[322983146,1713561039677,-155.0,0.000155,2]
[322983157,1713561039765,-150.0,0.000155,2]
[322983159,1713561039775,-150.0,0.00015525,2]
[322983161,1713561039784,-150.0,0.00015608,2]
[322983163,1713561039793,-150.0,0.00015609,2]
[322983165,1713561039802,-4493.78828139,0.00015616,2]
[322983167,1713561039811,-200.0,0.00015616,2]
[322983169,1713561039821,-1083.0,0.00015617,2]
[322983171,1713561039830,-10055.37431574,0.00015618,2]
[322983173,1713561039839,-150.0,0.00015619,2]
[322983175,1713561039848,-150.0,0.00015622,2]
[322983177,1713561039857,-2228.37,0.00015637,6]
[322983179,1713561039866,-150.0,0.00015658,2]
[322983181,1713561039877,-150.0,0.00015671,2]
[322983184,1713561039886,-150.0,0.00015694,2]
[322983186,1713561039896,-150.0,0.00015696,2]
[322983188,1713561039905,-1000.0,0.00015699,2]
[322983190,1713561039915,-995.311,0.00015713,2]
[322983191,1713561039924,-580.698,0.00015713,2]
[322983192,1713561039934,-2294.0,0.00015713,2]
[322983193,1713561039943,-1424.38,0.00015713,2]
[322983194,1713561039953,-541.0,0.00015713,2]
[322983195,1713561039962,-1228.0,0.00015713,2]
[322983196,1713561039972,-1255.0,0.00015713,2]
[322983197,1713561039981,-436.0,0.00015713,2]
[322983198,1713561039991,-807.0,0.00015713,2]
[322983199,1713561040000,-1950.0,0.00015713,2]
[322983200,1713561040009,-609.0,0.00015713,2]
[322983201,1713561040018,-257.0,0.00015713,2]